bitfinex/quotes_ETHUSD_20260203
["timestamp","ask_amount","ask_price","bid_price","bid_amount"]
[1770096096627,0.9115038,2322.8,2322.0,12.03591048]
[1770096096835,0.9115038,2322.7,2322.0,12.03591048]
[1770096096991,0.9115038,2322.6,2322.0,12.03591048]
[1770096097190,1.07737669,2322.9,2322.0,13.11253941]
[1770096097406,0.91096873,2322.8,2322.0,13.11256401]
[1770096097717,0.91096873,2322.7,2322.0,13.11256401]
[1770096097924,0.91096873,2322.6,2322.0,13.11256401]
[1770096098085,1.07737669,2322.9,2322.1,12.03491048]
[1770096098291,0.91087701,2322.8,2322.1,12.03491048]
[1770096098492,0.91087701,2322.7,2322.1,12.03491048]
[1770096098731,0.91087701,2322.6,2322.1,12.03491048]
[1770096098900,1.07737669,2322.9,2322.1,12.03491048]
[1770096099095,0.91109206,2322.8,2322.1,12.03491048]
[1770096099296,0.91109206,2322.7,2322.1,13.11151105]
[1770096099503,0.0011,2322.9,2322.1,13.11151105]
[1770096100021,0.0011,2322.9,2322.0,0.001]
[1770096100022,0.91119303,2322.8,2322.0,0.001]
[1770096100209,1.07735664,2322.9,2322.0,0.001]
[1770096100210,1.07735664,2322.9,2322.0,1.07765158]
[1770096100388,1.44942337,2322.8,2322.0,1.07765158]
[1770096100584,0.53823203,2322.8,2322.0,1.07765158]
[1770096101020,0.53823203,2322.8,2322.1,1.07659906]
[1770096101216,0.53823203,2322.8,2322.0,13.11253242]
[1770096101422,1.6145412,2322.8,2322.3,0.001]
[1770096101600,1.50320413,2322.7,2322.0,0.001]
[1770096101800,0.91114137,2322.6,2322.0,0.001]
[1770096102120,13.02582091,2322.7,2322.0,0.001]
[1770096102312,0.91120798,2322.6,2322.0,0.001]
[1770096102623,13.02582091,2322.7,2322.0,0.001]
[1770096102810,2.32153185,2322.6,2322.0,0.001]
[1770096102988,1.41032301,2322.6,2322.0,0.001]
[1770096103390,1.07642626,2322.5,2322.0,0.001]
[1770096103992,2.48673978,2322.6,2322.0,0.001]
[1770096104224,0.91154457,2322.5,2322.0,0.001]
[1770096104412,2.48673978,2322.6,2322.0,0.001]
[1770096104599,2.21611702,2322.5,2322.0,0.001]
[1770096104917,1.30457157,2322.5,2322.0,0.001]
[1770096105505,1.07635327,2322.7,2322.0,12.03591048]
[1770096105708,0.0011,2322.8,2322.1,12.03491048]
[1770096106809,1.07739498,2322.8,2322.1,12.03491048]
[1770096107008,0.0011,2322.8,2322.1,12.03491048]
[1770096107426,0.0011,2322.8,2322.1,13.11147846]
[1770096108429,0.0011,2322.9,2322.2,12.03491048]
[1770096108799,0.0011,2323.0,2322.2,12.03491048]
[1770096109728,0.0011,2323.0,2322.4,12.03491048]
[1770096111720,0.0011,2323.0,2322.5,13.74326152]
[1770096112700,0.0011,2323.0,2322.6,13.56883526]
[1770096112901,0.0011,2323.1,2322.6,13.56883526]
[1770096113516,0.0011,2323.1,2322.6,0.902]
[1770096113727,0.0011,2323.1,2322.7,1.07633357]
[1770096114808,0.0011,2323.1,2322.7,13.74316883]
[1770096116928,0.0011,2323.7,2322.8,12.66683526]
[1770096117904,0.0011,2323.7,2323.0,12.66683526]
[1770096118910,0.0011,2324.1,2323.1,12.66683526]
[1770096119623,12.21754334,2324.1,2323.1,12.66683526]
[1770096120334,12.21754334,2324.1,2323.2,1.07610192]
[1770096120637,12.21754334,2324.1,2323.3,0.902]
[1770096120827,13.97721852,2324.1,2323.3,0.902]
[1770096122033,1.76077518,2324.1,2323.3,0.902]
[1770096122233,0.0011,2324.1,2323.5,12.66683526]
[1770096124438,0.0011,2324.1,2323.6,1.07591668]
[1770096124641,0.0011,2324.1,2323.6,13.74275194]
[1770096125840,0.0011,2324.1,2323.7,0.902]
[1770096127020,0.0011,2324.2,2323.8,12.66683526]
[1770096127228,0.08626961,2324.8,2323.9,12.66683526]
[1770096127438,12.21644334,2325.3,2323.9,12.66683526]
[1770096127439,13.29160144,2325.3,2323.9,12.66683526]
[1770096127942,12.21644334,2325.3,2323.9,12.66683526]
[1770096128144,11.99944334,2325.3,2324.0,12.66683526]
[1770096128455,11.99944334,2325.3,2323.7,1.9778608]
[1770096128456,12.21754334,2325.1,2323.7,1.9778608]
[1770096128922,12.21644334,2324.9,2323.7,1.9778608]
[1770096129541,12.21644334,2324.9,2323.7,14.64469606]
[1770096130732,13.2927872,2325.1,2323.7,14.64469606]
[1770096131045,0.0011,2325.1,2323.7,14.64469606]
[1770096131249,0.65878217,2325.1,2323.9,12.66683526]
[1770096132211,0.0011,2325.1,2323.9,12.66683526]
[1770096133056,0.0011,2325.1,2324.1,12.66683526]
[1770096134015,12.21754334,2325.1,2324.1,12.66683526]
[1770096134318,12.21754334,2325.1,2324.0,1.07573149]
[1770096135059,13.29278999,2325.1,2323.9,12.66683526]
[1770096135228,1.87935351,2325.0,2324.1,12.66683526]
[1770096135932,1.07634665,2325.1,2324.1,12.66683526]
[1770096136249,13.29278999,2325.1,2324.1,12.66683526]
[1770096137024,13.29278999,2325.1,2324.1,13.74248972]
[1770096137545,12.21754334,2325.1,2324.1,13.74248972]
[1770096137951,0.0011,2325.1,2324.1,13.74248972]
[1770096138249,0.0011,2325.1,2324.3,12.66683526]
[1770096139043,0.0011,2325.1,2324.5,12.66683526]
[1770096139642,13.07291278,2325.8,2324.8,12.66683526]
[1770096139861,1.0749346,2325.8,2324.8,12.66683526]
[1770096140583,1.0749346,2325.8,2324.7,0.902]
[1770096140584,0.0011,2324.8,2324.7,0.902]
[1770096141254,0.0011,2324.8,2324.2,1.07560939]
[1770096141653,0.0011,2324.8,2324.4,1.07554538]
[1770096141852,0.0011,2324.8,2324.4,1.07551578]
[1770096142061,0.0011,2324.8,2324.4,4.30216993]
[1770096142270,0.0011,2324.8,2324.5,1.07548716]
[1770096142448,0.0011,2324.8,2324.5,1.07547403]
[1770096142840,0.0011,2324.8,2324.4,1.07552179]
[1770096143164,0.0011,2324.8,2324.4,1.07552262]
[1770096145568,0.0011,2324.8,2324.3,13.09942838]
[1770096147465,0.0011,2325.0,2324.3,13.09942838]
[1770096149478,1.99019654,2325.7,2324.4,12.02387135]
[1770096149654,0.91299372,2325.6,2324.6,12.02387135]
[1770096149854,0.91299372,2325.5,2324.7,0.902]
[1770096150059,13.83018939,2325.5,2324.7,0.902]
[1770096150274,12.91719567,2325.5,2324.7,0.902]
[1770096150852,0.91297925,2325.4,2324.7,0.902]
[1770096151053,1.38301749,2325.3,2324.7,0.902]
[1770096152198,12.91719567,2325.1,2324.1,12.02387135]
[1770096152365,2.45815015,2325.3,2324.2,12.92587135]
[1770096152679,2.88122517,2325.2,2324.4,1.07551324]
[1770096152854,1.96758662,2325.2,2324.4,1.07551324]
[1770096153271,0.91401783,2325.1,2324.4,1.07551324]
[1770096153460,1.96758662,2325.2,2324.4,1.07551324]
[1770096153676,0.91402589,2325.1,2324.7,0.001]
[1770096153876,0.39567452,2325.1,2324.7,0.001]
[1770096154479,1.47090191,2325.1,2324.7,0.001]
[1770096154995,0.39567452,2325.1,2324.7,0.001]
[1770096156382,12.91719567,2324.9,2323.7,0.001]
[1770096156686,12.91719567,2324.7,2323.8,1.07582112]
[1770096156885,0.91491942,2324.6,2323.8,1.07582112]
[1770096157087,0.91491942,2324.5,2323.8,1.07582112]
[1770096157384,12.91719567,2324.7,2323.7,0.001]
[1770096157586,0.91442908,2324.6,2323.9,1.07574725]
[1770096157774,0.91442908,2324.5,2324.1,12.02387135]
[1770096158105,15.90026015,2325.1,2324.1,13.09954855]
[1770096158290,0.91421281,2325.0,2324.1,13.09954855]
[1770096158463,1.9895475,2324.9,2324.1,13.09954855]
[1770096158780,0.91421281,2324.8,2324.1,13.09954855]
[1770096158965,0.91421281,2324.7,2324.2,0.66319386]
[1770096159165,1.47093332,2325.1,2324.2,12.68706521]
[1770096159366,0.91428591,2325.0,2324.2,12.68706521]
[1770096159589,0.91428591,2324.9,2324.2,12.68706521]
[1770096159767,1.47093332,2325.1,2324.2,12.68706521]
[1770096159964,1.51216273,2325.5,2324.3,12.02387135]
[1770096160210,3.82484835,2326.2,2324.3,12.02387135]
[1770096160211,1.37882796,2326.8,2325.5,12.02387135]
[1770096160492,1.37882796,2326.8,2326.1,1.29893263]
[1770096160493,0.0011,2326.8,2326.1,1.29893263]
[1770096160705,1.07555164,2326.8,2326.1,12.78597387]
[1770096160995,0.0011,2326.8,2326.1,13.86072959]
[1770096161158,0.0011,2326.8,2326.1,12.78597387]
[1770096161357,0.0011,2326.8,2326.1,13.86073067]
[1770096162261,0.0011,2326.8,2326.1,12.78597387]
[1770096162592,0.0011,2326.8,2325.6,0.902]
[1770096162593,12.91987751,2326.8,2325.6,0.902]
[1770096162891,0.0011,2326.8,2326.0,1.07480314]
[1770096163105,0.0011,2326.8,2326.0,13.09865106]
[1770096163594,0.0011,2326.8,2326.1,12.02387135]
[1770096163990,0.0011,2326.8,2326.1,13.09862572]
[1770096166699,0.0011,2326.6,2326.1,13.09862572]
[1770096167004,0.0011,2326.8,2326.1,13.09862572]
[1770096167224,4.29631605,2327.6,2326.1,13.09862572]
[1770096167225,1.07515158,2327.7,2326.6,12.02387135]
[1770096167490,1.07515158,2327.7,2326.6,12.92487135]
[1770096167673,0.53723054,2327.6,2326.6,12.92487135]
[1770096168007,1.07513087,2327.7,2326.6,12.92487135]
[1770096169385,12.91987751,2327.7,2326.6,1.07450903]
[1770096169573,12.91987751,2327.7,2326.5,1.0745441]
[1770096169894,12.91987751,2327.7,2326.6,1.07452547]
[1770096170089,13.62618624,2327.6,2326.5,1.074567]
[1770096170264,13.62618624,2327.6,2326.6,1.07452023]
[1770096170468,13.62618624,2327.6,2326.4,1.0745863]
[1770096170664,13.62618624,2327.6,2326.3,4.29860654]
[1770096170665,13.62618624,2327.6,2326.3,12.87505634]
[1770096170865,13.62618624,2327.6,2326.3,13.94972384]
[1770096171103,1.36272862,2327.5,2326.5,1.07457355]
[1770096171779,2.43687777,2327.5,2326.5,12.87505634]
[1770096171980,1.0740677,2327.6,2326.5,12.89220826]
[1770096173276,0.0011,2327.7,2326.6,0.01715192]
[1770096173465,0.0011,2327.7,2326.7,12.89220826]
[1770096173671,0.0011,2327.7,2326.9,13.94944716]
[1770096175295,0.0011,2327.7,2326.9,14.86759908]
[1770096175498,0.0011,2327.7,2327.0,12.87505634]
[1770096175803,0.0011,2327.7,2327.1,13.94935482]
[1770096176489,0.0011,2327.7,2327.0,1.07433175]
[1770096178305,0.0011,2327.7,2327.0,13.94938809]
[1770096179084,0.0011,2327.5,2327.0,13.94938809]
[1770096180498,0.0011,2327.7,2327.3,12.87505634]
[1770096180870,0.0011,2327.7,2327.2,0.01715192]
[1770096181476,0.0011,2327.7,2327.2,12.89220826]
[1770096182294,0.0011,2328.0,2327.2,12.89220826]
[1770096182295,0.0011,2328.0,2327.4,12.87505634]
[1770096182601,0.0011,2328.0,2327.3,1.0741713]
[1770096182783,0.0011,2328.0,2327.4,0.53882672]
[1770096183573,0.0011,2328.0,2327.4,1.61298225]
[1770096183811,0.0011,2328.3,2327.7,12.89220826]
[1770096184114,0.0011,2328.5,2328.1,12.87505634]
[1770096184411,0.0011,2328.5,2328.2,13.94884725]
[1770096184619,0.0011,2328.7,2328.3,0.66226966]
[1770096184986,0.0011,2328.7,2328.0,1.09100211]
[1770096185508,0.0011,2328.7,2328.1,1.07382033]
[1770096186541,0.0011,2328.7,2328.1,13.94887667]
[1770096186696,0.0011,2328.7,2328.2,12.89220826]
[1770096187285,0.0011,2329.3,2328.4,12.89220826]
[1770096187982,0.0011,2329.3,2328.5,13.77605634]
[1770096188930,0.0011,2329.3,2328.6,1.07360645]
[1770096189089,0.0011,2329.3,2328.6,13.96581471]
[1770096190417,0.0011,2329.3,2328.7,12.89220826]
[1770096190784,1.07438381,2329.3,2328.3,1.07371257]
[1770096191012,1.78767679,2329.2,2328.3,1.07371257]
[1770096191207,1.78767679,2329.2,2328.4,0.001]
[1770096191408,0.0011,2329.1,2328.4,0.001]
[1770096191609,0.0011,2329.1,2328.4,12.87605634]
[1770096191795,0.0011,2329.1,2328.4,12.89320826]
[1770096192004,0.0011,2329.3,2328.9,12.87505634]
[1770096192335,0.0011,2329.3,2328.9,0.9]
[1770096192828,0.0011,2329.3,2328.9,1.97344543]
[1770096193303,0.0011,2329.3,2328.9,1.97346588]
[1770096194193,1.07286928,2330.2,2329.2,0.01715192]
[1770096194999,13.58323531,2330.3,2329.2,1.09044341]
[1770096195320,0.0011,2330.3,2329.3,12.89220826]
[1770096196296,0.0011,2330.3,2329.4,12.89220826]
[1770096196520,0.0011,2330.3,2329.7,0.01715192]
[1770096196727,16.90173843,2331.0,2329.8,0.9]
[1770096196728,12.50931207,2331.0,2329.8,0.9]
[1770096197020,1.0725931,2330.8,2329.8,0.9]
[1770096197425,1.0725931,2330.8,2329.8,1.97304045]
[1770096197624,2.76275149,2330.9,2329.8,14.86524871]
[1770096197792,1.07257765,2330.9,2329.8,14.86524871]
[1770096198251,17.20398777,2331.2,2329.8,14.86524871]
[1770096198252,1.07245506,2331.1,2329.8,14.86524871]
[1770096198397,1.07245506,2331.1,2330.0,12.87505634]
[1770096198940,16.79840759,2331.5,2329.9,0.01715192]
[1770096198941,1.07231706,2331.4,2330.2,12.87505634]
[1770096199144,12.50931207,2331.8,2330.4,12.87505634]
[1770096199316,13.76024328,2331.7,2330.4,12.87505634]
[1770096199853,13.76024328,2331.7,2330.5,0.01715192]
[1770096200203,13.76024328,2331.7,2330.6,0.01715192]
[1770096200518,1.25093121,2331.7,2330.8,0.01715192]
[1770096200706,12.72184373,2331.9,2330.7,0.01715192]
[1770096200900,12.72184373,2331.9,2330.4,0.01715192]
[1770096201105,1.07213311,2331.8,2330.6,12.18484396]
[1770096201324,12.61944373,2332.2,2330.8,12.18484396]
[1770096201530,1.07199519,2332.1,2331.2,0.01715192]
[1770096201722,1.79794197,2332.0,2331.2,0.01715192]
[1770096202119,1.07199519,2332.1,2331.2,0.01715192]
[1770096203160,13.793747,2332.3,2331.2,0.01715192]
[1770096203441,13.793747,2332.3,2330.8,1.07256306]
[1770096203935,0.0011,2331.5,2330.8,1.08973635]
[1770096204906,0.0011,2331.5,2330.7,12.18484396]
[1770096205137,0.0011,2331.5,2330.5,1.97271259]
[1770096205314,0.0011,2331.5,2330.5,0.9]
[1770096206048,12.62054373,2331.5,2330.2,1.07284827]
[1770096206333,12.62054373,2331.5,2330.3,1.07280824]
[1770096206534,12.62054373,2331.5,2330.4,1.07274625]
[1770096206742,12.62054373,2331.5,2330.1,12.18484396]
[1770096206909,12.62054373,2331.5,2330.3,1.07279351]
[1770096207110,12.62054373,2331.5,2330.3,1.08994543]
[1770096208241,1.07231706,2331.4,2330.3,1.08994543]
[1770096208437,1.7982129,2331.3,2330.3,1.08994543]
[1770096208741,1.7982129,2331.3,2330.3,13.25763747]
[1770096210838,1.07240905,2331.2,2330.3,0.01715192]
[1770096211947,13.69185278,2331.2,2329.9,0.91715192]
[1770096212246,1.97796353,2331.1,2330.0,1.09009266]
[1770096212445,1.97796353,2331.1,2330.0,0.01715192]
[1770096212628,14.59740726,2331.1,2330.0,0.01715192]
[1770096213223,12.61944373,2330.9,2329.7,1.07309034]
[1770096213636,12.61944373,2330.9,2329.7,13.24078238]
[1770096213839,1.36919448,2330.8,2329.7,13.24078238]
[1770096214345,1.36919448,2330.8,2329.6,0.01715192]
[1770096214346,1.36919448,2330.8,2330.1,12.18484396]
[1770096214553,1.17476305,2331.3,2330.2,0.01715192]
[1770096214722,12.62054373,2331.5,2330.5,0.01715192]
[1770096214723,1.07234729,2331.4,2330.5,0.01715192]
[1770096215227,4.29029721,2331.5,2330.5,0.01715192]
[1770096215228,0.0011,2331.5,2330.5,0.01715192]
[1770096215844,0.0011,2331.5,2330.5,1.08988266]
[1770096216046,0.0011,2331.5,2330.5,0.01715192]
[1770096216357,0.54766931,2331.5,2330.5,12.18484396]
[1770096216648,0.54766931,2331.5,2330.5,13.2575719]
[1770096217250,1.61995874,2331.5,2330.5,13.2575719]
[1770096217452,1.61995874,2331.5,2330.5,12.18484396]
[1770096217657,0.54766931,2331.5,2330.5,12.18484396]
[1770096217955,0.0011,2331.5,2330.7,12.16769204]
[1770096219141,0.0011,2331.5,2330.7,13.24030272]
[1770096220844,0.0011,2331.5,2330.7,12.16769204]
[1770096221159,0.0011,2331.5,2330.7,1.07263349]
[1770096221352,0.0011,2331.5,2330.6,1.08980231]
[1770096221654,0.0011,2331.5,2330.6,13.25749435]
[1770096223152,0.0011,2331.5,2330.9,13.24023912]
[1770096223335,0.0011,2331.5,2330.9,13.25739104]
[1770096223739,0.0011,2331.5,2330.9,12.18484396]
[1770096224841,0.0011,2331.7,2331.0,12.16769204]
[1770096225347,0.0011,2331.7,2331.0,13.24015152]
[1770096225860,1.071967,2332.2,2331.3,12.16769204]
[1770096226184,1.12989033,2332.4,2331.6,12.16769204]
[1770096226185,0.9134153,2332.1,2331.6,12.16769204]
[1770096226477,2.20169831,2332.6,2331.6,12.16769204]
[1770096226636,0.91381561,2332.5,2331.3,12.16769204]
[1770096226843,0.91381561,2332.4,2331.3,12.16769204]
[1770096227037,1.12989033,2332.6,2331.3,12.16769204]
[1770096227336,0.91380348,2332.5,2331.4,13.2400091]
[1770096227552,0.91380348,2332.4,2331.6,12.18484396]
[1770096227779,2.20274016,2332.7,2331.6,12.18484396]
[1770096228073,0.91368629,2332.6,2331.6,12.18484396]
[1770096228273,0.91368629,2332.5,2331.8,12.16769204]
[1770096228439,1.07282036,2332.7,2331.8,12.16769204]
[1770096228640,0.91354285,2332.6,2331.8,12.16769204]
[1770096228840,0.91354285,2332.5,2331.8,12.16769204]
[1770096229069,1.07282469,2332.7,2331.8,12.16769204]
[1770096229242,1.13499021,2332.6,2331.8,12.16769204]
[1770096229453,0.2214753,2332.6,2331.8,13.23981438]
[1770096229856,0.2214753,2332.6,2331.8,12.16769204]
[1770096230550,0.2214753,2332.6,2331.8,13.2398182]
[1770096230777,1.0728253,2332.7,2331.8,13.25697012]
[1770096230980,0.0011,2332.7,2331.8,13.25697012]
[1770096231949,0.0011,2332.7,2331.8,12.18484396]
[1770096232155,0.0011,2332.7,2331.8,12.16769204]
[1770096232784,0.0011,2332.7,2331.8,13.23982191]
[1770096233377,0.0011,2332.7,2331.8,1.07212987]
[1770096233778,0.0011,2332.7,2331.8,13.99901557]
[1770096234375,0.0011,2332.7,2331.8,12.9268857]
[1770096234660,12.76589075,2332.5,2331.2,12.9268857]
[1770096234985,12.76589075,2332.5,2331.4,1.07231482]
[1770096235559,1.07185731,2332.4,2331.3,1.07232766]
[1770096235762,0.82185731,2332.4,2331.3,1.07232766]
[1770096236359,1.78751773,2332.3,2331.3,13.99921336]
[1770096236754,1.07178879,2332.6,2331.5,12.94403762]
[1770096237579,4.28803469,2332.7,2331.5,14.91526272]
[1770096238483,0.0011,2332.7,2331.7,12.9268857]
[1770096239670,0.0011,2332.7,2331.7,13.99903079]
[1770096239875,0.0011,2332.7,2331.7,13.99905707]
[1770096240284,0.0011,2332.7,2331.7,14.00005707]
[1770096240469,0.0011,2332.4,2331.7,14.00005707]
[1770096240973,0.0011,2332.4,2331.7,14.01720899]
[1770096241368,0.0011,2332.6,2332.0,12.9268857]
[1770096241769,0.0011,2332.6,2332.0,13.99888431]
[1770096242006,0.0011,2332.6,2331.7,14.0000446]
[1770096242166,0.0011,2332.6,2331.9,1.07208499]
[1770096242492,0.0011,2332.6,2331.8,12.94403762]
[1770096242702,0.0011,2332.6,2331.9,12.9268857]
[1770096242878,0.0011,2332.6,2332.0,12.9268857]
[1770096243072,0.0011,2332.6,2332.0,13.99891882]
[1770096244299,0.0011,2332.6,2332.0,12.9268857]
[1770096245204,0.0011,2332.6,2332.0,13.99892494]
[1770096246189,0.0011,2332.6,2332.1,12.94403762]
[1770096247401,0.0011,2332.6,2332.1,12.9268857]
[1770096249200,0.0011,2332.6,2332.0,0.01715192]
[1770096249378,0.0011,2332.6,2331.9,13.99894647]
[1770096249584,0.0011,2332.6,2332.0,1.07203223]
[1770096249780,0.0011,2332.6,2332.0,13.99891793]
[1770096251106,1.07181136,2332.5,2331.7,0.001]
[1770096251905,13.83878087,2332.6,2331.7,0.001]
[1770096253232,12.76589075,2332.4,2331.7,0.001]
[1770096253394,0.91406373,2332.3,2331.7,0.001]
[1770096253595,0.91406373,2332.2,2331.7,0.001]
[1770096253922,1.14192829,2332.5,2331.7,0.001]
[1770096253923,13.90781904,2332.5,2331.7,0.001]
[1770096254090,12.78304267,2331.9,2330.6,12.9268857]
[1770096254282,10.71422501,2332.0,2330.5,0.001]
[1770096254283,13.90781904,2331.7,2330.5,0.001]
[1770096254602,2.53107578,2331.8,2330.5,0.001]
[1770096254603,1.14192829,2331.5,2330.5,0.001]
[1770096254801,14.82179702,2331.4,2330.5,0.001]
[1770096255003,2.39615768,2331.3,2330.5,0.001]
[1770096255203,0.91397798,2331.2,2330.5,0.001]
[1770096255412,2.554566,2331.3,2330.5,0.001]
[1770096255728,0.9129151,2331.2,2330.5,0.001]
[1770096255883,2.554566,2331.3,2330.7,0.001]
[1770096256083,1.96097333,2331.2,2330.7,0.001]
[1770096256900,14.72686408,2331.2,2330.5,0.001]
[1770096257098,13.67786617,2331.1,2330.1,0.001]
[1770096257395,13.83843783,2330.9,2330.1,0.001]
[1770096259896,1.07254708,2330.9,2330.1,0.001]
[1770096262625,13.36879349,2330.9,2330.1,0.001]
[1770096262923,13.36879349,2330.9,2329.6,11.94580867]
[1770096263104,13.36879349,2330.9,2329.4,13.9180429]
[1770096263438,12.29624641,2330.7,2329.5,1.07318444]
[1770096263639,12.29624641,2330.7,2329.4,13.91802335]
[1770096263801,12.29624641,2330.7,2329.4,13.91804179]
[1770096264235,1.07268514,2330.6,2329.4,13.91804179]
[1770096264436,13.36893155,2330.6,2329.4,0.899]
[1770096264730,14.06221362,2330.5,2329.4,1.97223694]
[1770096265028,14.06221362,2330.5,2329.4,12.84480867]
[1770096265202,14.06221362,2330.5,2329.2,0.001]
[1770096265203,12.39864641,2330.4,2329.2,0.001]
[1770096265405,13.29764641,2330.4,2329.2,0.001]
[1770096266128,12.29624641,2330.2,2329.2,0.001]
[1770096266315,13.63315338,2330.1,2329.2,0.001]
[1770096267834,13.63315338,2330.1,2329.7,0.001]
[1770096268030,13.63315338,2330.1,2329.2,0.001]
[1770096268249,1.07296137,2330.0,2329.2,0.001]
[1770096268437,12.29624641,2329.9,2329.5,0.001]
[1770096268604,1.33692078,2329.8,2329.2,0.001]
[1770096269328,1.07296137,2330.0,2329.2,0.001]
[1770096270524,1.33690697,2330.1,2329.3,11.94580867]
[1770096270841,2.83872337,2330.5,2329.3,11.94580867]
[1770096271535,0.0011,2330.7,2329.4,0.2335703]
[1770096271834,1.07374461,2330.7,2329.5,11.94580867]
[1770096272034,12.39864641,2330.6,2329.2,0.001]
[1770096272234,12.39864641,2330.6,2329.2,11.94680867]
[1770096272534,12.29624641,2330.4,2329.2,11.94680867]
[1770096272740,13.63314417,2330.3,2329.2,11.94680867]
[1770096273418,1.33689776,2330.3,2329.2,13.02010936]
[1770096273617,1.07273117,2330.5,2329.2,13.02010936]
[1770096278341,1.07269558,2330.6,2329.2,13.02010936]
[1770096279049,13.36894199,2330.6,2329.2,13.02010936]
[1770096280621,13.36894199,2330.6,2329.4,0.001]
[1770096280818,0.0011,2330.3,2329.4,0.001]
[1770096281012,1.23083464,2330.3,2329.4,0.001]
[1770096281214,1.07286928,2330.2,2329.4,0.001]
[1770096281615,13.36911569,2330.2,2329.4,0.001]
[1770096282535,1.07286928,2330.2,2329.4,0.001]
[1770096282737,1.07286928,2330.2,2329.4,11.94680867]
[1770096282917,0.6595181,2330.1,2329.4,11.94680867]
[1770096283117,2.30369091,2330.3,2329.6,11.94580867]
[1770096283118,1.23083464,2330.3,2329.6,11.94580867]
[1770096283352,0.0011,2330.3,2329.6,11.94580867]
[1770096284022,1.07393784,2330.3,2329.6,11.94580867]
[1770096284650,0.0011,2330.3,2329.6,11.94580867]
[1770096285217,0.53758354,2330.3,2329.6,11.94580867]
[1770096286324,1.61041385,2330.3,2329.6,11.94580867]
[1770096287222,0.53758354,2330.3,2329.6,11.94580867]
[1770096287624,0.53758354,2330.3,2329.6,13.01895379]
[1770096287837,0.0011,2330.3,2329.6,13.01895379]
[1770096289824,0.0011,2330.3,2329.6,11.94580867]
[1770096290024,0.9119195,2330.2,2329.6,11.94580867]
[1770096290225,0.0011,2330.3,2329.6,11.94580867]
[1770096290424,0.91209649,2330.2,2329.6,11.94580867]
[1770096290723,0.0011,2330.3,2329.6,11.94580867]
[1770096290928,0.91209778,2330.2,2329.6,11.94580867]
[1770096291153,0.0011,2330.3,2329.6,11.94580867]
[1770096291356,0.91213017,2330.2,2329.6,11.94580867]
[1770096291572,0.0011,2330.3,2329.6,11.94580867]
[1770096291762,0.91210112,2330.2,2329.6,11.94580867]
[1770096291949,0.0011,2330.3,2329.6,11.94580867]
[1770096292275,0.0011,2330.3,2329.4,0.001]
[1770096292276,1.98499778,2330.2,2329.4,0.001]
[1770096292436,1.53986684,2330.1,2329.4,0.001]
[1770096292635,0.62775266,2330.1,2329.4,0.001]
[1770096293832,0.91242967,2330.0,2329.4,0.001]
[1770096294033,0.91242967,2329.9,2329.4,0.001]
[1770096294228,1.07296137,2330.0,2329.4,0.001]
[1770096294431,0.91243546,2329.9,2329.4,0.001]
[1770096294728,1.07296137,2330.0,2329.4,0.001]
[1770096294930,1.51165156,2329.9,2329.4,0.001]
[1770096295154,0.59923816,2329.9,2329.4,0.001]
[1770096295634,1.07296137,2330.0,2329.4,0.001]
[1770096295859,0.91239578,2329.9,2329.4,0.001]
[1770096296153,1.07296137,2330.0,2329.4,0.001]
[1770096296332,0.91241891,2329.9,2329.4,0.001]
[1770096296533,1.07296137,2330.0,2329.4,0.001]
[1770096296737,1.51166934,2329.9,2329.4,0.001]
[1770096296934,0.59924665,2329.9,2329.4,0.001]
[1770096297456,0.62775266,2330.1,2329.4,12.1836778]
[1770096297764,0.91260119,2330.0,2329.4,12.1836778]
[1770096297926,1.14192829,2330.2,2329.4,12.1836778]
[1770096298132,0.91260199,2330.1,2329.4,12.1836778]
[1770096298343,0.91260199,2330.0,2329.6,12.1826778]
[1770096298537,1.14192829,2330.2,2329.6,12.1826778]
[1770096298750,0.91284184,2330.1,2329.6,12.1826778]
[1770096298955,0.91284184,2330.0,2329.6,12.1826778]
[1770096299267,1.51498122,2330.2,2329.6,12.1826778]
[1770096299433,0.91316904,2330.1,2329.6,12.1826778]
[1770096299634,0.91316904,2330.0,2329.6,12.1826778]
[1770096299844,1.51498122,2330.2,2329.6,12.1826778]
[1770096300046,0.91317855,2330.1,2329.6,12.1826778]
[1770096300257,0.91317855,2330.0,2329.6,12.1826778]
[1770096300534,1.14192829,2330.2,2329.6,12.1826778]
[1770096300730,0.91341574,2330.1,2329.6,12.1826778]
[1770096300956,0.91341574,2330.0,2329.6,13.25581475]
[1770096301155,1.14302829,2330.3,2329.6,13.25581475]
[1770096301363,2.42836196,2330.2,2329.6,12.1826778]
[1770096301540,1.14192829,2330.2,2329.7,12.1826778]
[1770096301740,0.0011,2330.5,2329.8,12.1826778]
[1770096302246,0.0011,2330.7,2329.7,12.1826778]
[1770096302446,0.0011,2330.7,2329.9,12.1826778]
[1770096303863,12.70165171,2330.7,2329.5,12.1826778]
[1770096304051,12.70165171,2330.7,2329.6,1.07314471]
[1770096304668,12.70165171,2330.7,2329.4,5.19391072]
[1770096304669,15.28793465,2330.6,2329.4,0.901]
[1770096304871,12.70055171,2330.4,2329.4,0.901]
[1770096305865,2.58738294,2330.6,2329.5,13.25586759]
[1770096306069,4.86149321,2330.6,2329.7,12.1826778]
[1770096306967,4.86149321,2330.6,2329.4,14.15687948]
[1770096307169,17.56204492,2330.6,2329.4,14.15687948]
[1770096307337,0.0011,2330.7,2329.7,12.1826778]
[1770096307543,1.07377103,2330.7,2329.7,13.25576504]
[1770096307842,1.07377103,2330.7,2329.7,13.25577586]
[1770096308249,1.07377103,2330.7,2329.7,12.1836778]
[1770096308449,13.77432274,2330.7,2329.7,0.001]
[1770096308667,0.0011,2330.5,2329.7,1.0740981]
[1770096308880,0.0011,2330.5,2329.7,13.2567759]
[1770096309055,0.0011,2330.5,2329.7,12.1836778]
[1770096311874,0.0011,2330.5,2329.7,0.001]
[1770096313479,0.0011,2330.5,2329.8,12.1826778]
[1770096314069,0.91285713,2330.4,2329.8,12.1826778]
[1770096314254,0.0011,2330.5,2329.8,12.1826778]
[1770096315571,0.91287188,2330.4,2329.8,12.1826778]
[1770096315745,0.0011,2330.5,2329.8,12.1826778]
[1770096315947,0.0011,2330.5,2329.8,13.25572829]
[1770096316148,0.0011,2330.5,2329.9,12.1826778]
[1770096317660,0.91223821,2330.4,2329.9,12.1826778]
[1770096317869,0.0011,2330.5,2329.9,12.1826778]
[1770096318075,0.91209947,2330.4,2329.9,12.1826778]
[1770096318277,0.0011,2330.5,2329.9,12.1826778]
[1770096320753,0.0011,2330.5,2329.7,0.001]